[Event "EYTCC U18 Open 2019"]
[Site "Pardubice"]
[Date "2019.07.11"]
[Round "1.25"]
[White "Schoppen, Casper"]
[Black "Gavrilescu, David"]
[Result "1-0"]
[ECO "C11"]
[WhiteElo "2493"]
[BlackElo "2473"]
[Annotator "ChessBase"]
[PlyCount "49"]
[EventDate "2019.07.11"]
[EventType "swiss"]
[EventCountry "CZE"]
[SourceTitle "playchess.com"]
[Source "ChessBase"]
[SourceQuality "1"]
[WhiteTeam "Netherlands"]
[BlackTeam "Romania"]
[WhiteTeamCountry "NED"]
[BlackTeamCountry "ROU"]
[TimeControl "40/5400+30:1800+30"]

1. e4 {[%emt 0:00:00]} e6 {[%emt 0:00:00]} 2. d4 {[%emt 0:00:00]} d5 {[%emt 0:00:10]} 3. Nc3 {[%emt 0:00:00]} Nf6 {[%emt 0:00:38]} 4. e5 {[%emt 0:00:00]} Nfd7 {[%emt 0:00:12]} 5. f4 {[%emt 0:00:00]} c5 {[%emt 0:00:10]} 6. Nf3 {[%emt 0:00:00]} Be7 {[%emt 0:01:21]} 7. Be3 {[%emt 0:00:07]} O-O {[%emt 0:00:25]} 8. Qd2 {[%emt 0:00:32]} a6 {[%emt 0:00:22]} 9. Bd3 {[%emt 0:01:50]} cxd4 {[%emt 0:00:38]} 10. Nxd4 {[%emt 0:00:07]} Nc5 {[%emt 0:00:08]} 11. O-O {[%emt 0:01:58]} Nxd3 {[%emt 0:01:05]} 12. cxd3 {[%emt 0:00:50]} Bd7 {[%emt 0:00:07]} 13. Rac1 {[%emt 0:08:38]} Nc6 {[%emt 0:00:45]} 14. Nxc6 {[%emt 0:05:52]} Bxc6 {[%emt 0:00:08]} 15. Ne2 {[%emt 0:00:30]} Rc8 {[%emt 0:00:53]} 16. Nd4 {[%emt 0:04:55]} Qd7 {[%emt 0:09:07]} 17. f5 {[%emt 0:11:42]} exf5 {[%emt 0:11:33]} 18. Nxf5 {[%emt 0:00:11]} Bb5 {[%emt 0:03:49]} 19. Bg5 {[%emt 0:05:14]} Bxg5 {[%emt 0:17:38]} 20. Qxg5 {[%emt 0:00:16]} f6 {[%emt 0:00:05]} 21. exf6 {[%emt 0:02:28]} Rxc1 {[%emt 0:12:34]} 22. Rxc1 {[%emt 0:00:37]} Rxf6 {[%emt 0:05:22]} 23. Rc8+ {[%emt 0:00:06]} Kf7 {[%emt 0:02:10]} 24. Qxg7+ {[%emt 0:00:09]} Ke6 {[%emt 0:00:05]} 25. Nd4+ {[%emt 0:00:22]} 1-0

[Event "EYTCC U18 Open 2019"]
[Site "Pardubice"]
[Date "2019.07.11"]
[Round "1.26"]
[White "Stoleriu, George"]
[Black "Kevlishvili, Robby"]
[Result "0-1"]
[ECO "B51"]
[WhiteElo "2360"]
[BlackElo "2480"]
[Annotator "ChessBase"]
[PlyCount "110"]
[EventDate "2019.07.11"]
[EventType "swiss"]
[EventCountry "CZE"]
[SourceTitle "playchess.com"]
[Source "ChessBase"]
[SourceQuality "1"]
[WhiteTeam "Romania"]
[BlackTeam "Netherlands"]
[WhiteTeamCountry "ROU"]
[BlackTeamCountry "NED"]
[TimeControl "40/5400+30:1800+30"]

1. e4 {[%emt 0:00:00]} c5 {[%emt 0:00:00]} 2. Nf3 {[%emt 0:00:00]} d6 {[%emt 0:00:00]} 3. Bb5+ {[%emt 0:00:00]} Nd7 {[%emt 0:00:00]} 4. d4 {[%emt 0:00:16]} cxd4 {[%emt 0:00:08]} 5. Qxd4 {[%emt 0:00:07]} a6 {[%emt 0:00:16]} 6. Bxd7+ {[%emt 0:00:06]} Bxd7 {[%emt 0:00:06]} 7. c4 {[%emt 0:00:15]} Nf6 {[%emt 0:02:49]} 8. Nc3 {[%emt 0:00:07]} e6 {[%emt 0:04:50]} 9. O-O {[%emt 0:02:53]} Be7 {[%emt 0:00:15]} 10. Bg5 {[%emt 0:17:19]} O-O {[%emt 0:09:46]} 11. Bxf6 {[%emt 0:10:41]} Bxf6 {[%emt 0:07:14]} 12. Qxd6 {[%emt 0:03:46]} Bxc3 {[%emt 0:00:35]} 13. bxc3 {[%emt 0:00:04]} Bc6 {[%emt 0:00:06]} 14. Rfd1 {[%emt 0:23:56]} Qxd6 {[%emt 0:04:28]} 15. Rxd6 {[%emt 0:00:13]} Bxe4 {[%emt 0:00:27]} 16. Ne5 {[%emt 0:00:29]} Rfd8 {[%emt 0:06:59]} 17. Rad1 {[%emt 0:05:46]} Rxd6 {[%emt 0:00:38]} 18. Rxd6 {[%emt 0:00:04]} f6 {[%emt 0:06:21]} 19. Nd7 {[%emt 0:09:56]} Bc6 {[%emt 0:08:08]} 20. Nc5 {[%emt 0:07:45]} e5 {[%emt 0:00:43]} 21. f3 {[%emt 0:03:47]} Kf8 {[%emt 0:02:48]} 22. Ne6+ {[%emt 0:06:29]} Kf7 {[%emt 0:08:28]} 23. Nc7 {[%emt 0:06:26]} Rc8 {[%emt 0:00:30]} 24. Nd5 {[%emt 0:00:21]} Ke8 {[%emt 0:07:00]} 25. Re6+ {[%emt 0:01:10]} Kf8 {[%emt 0:07:50]} 26. Nb4 {[%emt 0:00:31]} Kf7 {[%emt 0:01:57]} 27. Rd6 {[%emt 0:00:03]} Ke7 {[%emt 0:00:49]} 28. c5 {[%emt 0:00:44]} a5 {[%emt 0:03:47]} 29. Nxc6+ {[%emt 0:00:04]} Rxc6 {[%emt 0:00:04]} 30. Rd5 {[%emt 0:00:03]} Rc7 {[%emt 0:01:08]} 31. Rd6 {[%emt 0:01:37]} Rxc5 {[%emt 0:00:37]} 32. Rb6 {[%emt 0:00:04]} Rxc3 {[%emt 0:00:13]} 33. Rxb7+ {[%emt 0:00:04]} Kf8 {[%emt 0:00:10]} 34. Rb2 {[%emt 0:01:21]} a4 {[%emt 0:02:36]} 35. Kf2 {[%emt 0:00:19]} a3 {[%emt 0:00:24]} 36. Rd2 {[%emt 0:00:36]} Ke7 {[%emt 0:00:17]} 37. h4 {[%emt 0:00:34]} Ke6 {[%emt 0:01:19]} 38. Kg3 {[%emt 0:00:30]} h5 {[%emt 0:01:44]} 39. Kf2 {[%emt 0:00:11]} Kf5 {[%emt 0:01:53]} 40. Kg3 {[%emt 0:00:32]} g6 {[%emt 0:04:12]} 41. Re2 {[%emt 0:04:45]} g5 {[%emt 0:06:00]} 42. hxg5 {[%emt 0:04:09]} fxg5 {[%emt 0:00:15]} 43. Kf2 {[%emt 0:02:15]} g4 {[%emt 0:02:18]} 44. fxg4+ {[%emt 0:11:13]} hxg4 {[%emt 0:00:06]} 45. Ke1 {[%emt 0:04:38]} Rc1+ {[%emt 0:03:55]} 46. Kd2 {[%emt 0:01:19]} Rb1 {[%emt 0:01:09]} 47. Kd3 {[%emt 0:01:55]} Kf4 {[%emt 0:00:52]} 48. Re4+ {[%emt 0:02:19]} Kg3 {[%emt 0:00:06]} 49. Ra4 {[%emt 0:01:48]} Rb2 {[%emt 0:01:41]} 50. Rxa3 {[%emt 0:00:12]} Kxg2 {[%emt 0:00:05]} 51. Ke4 {[%emt 0:00:09]} g3 {[%emt 0:00:55]} 52. Kxe5 {[%emt 0:00:20]} Kf2 {[%emt 0:00:28]} 53. Ra8 {[%emt 0:00:36]} g2 {[%emt 0:00:07]} 54. Rf8+ {[%emt 0:00:06]} Ke1 {[%emt 0:00:05]} 55. Rg8 {[%emt 0:00:19]} Kf1 {[%emt 0:00:36]} 0-1

[Event "EYTCC U18 Open 2019"]
[Site "Pardubice"]
[Date "2019.07.11"]
[Round "1.27"]
[White "Vrolijk, Liam"]
[Black "Ileana, George"]
[Result "1-0"]
[ECO "A17"]
[WhiteElo "2478"]
[BlackElo "2344"]
[Annotator "ChessBase"]
[PlyCount "149"]
[EventDate "2019.07.11"]
[EventType "swiss"]
[EventCountry "CZE"]
[SourceTitle "playchess.com"]
[Source "ChessBase"]
[SourceQuality "1"]
[WhiteTeam "Netherlands"]
[BlackTeam "Romania"]
[WhiteTeamCountry "NED"]
[BlackTeamCountry "ROU"]
[TimeControl "40/5400+30:1800+30"]

1. Nf3 {[%emt 0:00:00]} Nf6 {[%emt 0:00:09]} 2. c4 {[%emt 0:00:00]} e6 {[%emt 0:00:13]} 3. Nc3 {[%emt 0:00:14]} Bb4 {[%emt 0:00:31]} 4. Qc2 {[%emt 0:00:49]} O-O {[%emt 0:01:36]} 5. a3 {[%emt 0:00:34]} Bxc3 {[%emt 0:01:00]} 6. Qxc3 {[%emt 0:00:10]} d6 {[%emt 0:00:45]} 7. b4 {[%emt 0:02:22]} a5 {[%emt 0:00:12]} 8. Bb2 {[%emt 0:03:31]} axb4 {[%emt 0:02:31]} 9. axb4 {[%emt 0:00:12]} Rxa1+ {[%emt 0:01:24]} 10. Bxa1 {[%emt 0:00:08]} e5 {[%emt 0:07:14]} 11. e3 {[%emt 0:02:18]} b6 {[%emt 0:03:31]} 12. Be2 {[%emt 0:03:03]} Bb7 {[%emt 0:00:54]} 13. O-O {[%emt 0:01:42]} Nbd7 {[%emt 0:00:52]} 14. d4 {[%emt 0:04:56]} e4 {[%emt 0:02:58]} 15. Nd2 {[%emt 0:03:30]} d5 {[%emt 0:00:24]} 16. c5 {[%emt 0:05:46]} c6 {[%emt 0:00:41]} 17. b5 {[%emt 0:07:11]} Qc7 {[%emt 0:07:16]} 18. Rc1 {[%emt 0:04:27]} Rc8 {[%emt 0:02:02]} 19. bxc6 {[%emt 0:04:13]} Qxc6 {[%emt 0:05:04]} 20. Nb3 {[%emt 0:00:43]} Ra8 {[%emt 0:03:52]} 21. Qb4 {[%emt 0:19:06]} Ra4 {[%emt 0:17:34]} 22. Qd2 {[%emt 0:00:37]} Ra8 {[%emt 0:00:26]} 23. cxb6 {[%emt 0:04:44]} Qxb6 {[%emt 0:00:24]} 24. Nc5 {[%emt 0:00:15]} Bc8 {[%emt 0:13:09]} 25. Bc3 {[%emt 0:04:29]} Nf8 {[%emt 0:01:42]} 26. Qb2 {[%emt 0:01:23]} Qxb2 {[%emt 0:02:24]} 27. Bxb2 {[%emt 0:00:07]} Rb8 {[%emt 0:00:43]} 28. Bc3 {[%emt 0:00:42]} Bg4 {[%emt 0:00:37]} 29. f3 {[%emt 0:01:18]} exf3 {[%emt 0:02:06]} 30. gxf3 {[%emt 0:00:07]} Bf5 {[%emt 0:00:06]} 31. Kf2 {[%emt 0:03:05]} Rb1 {[%emt 0:04:29]} 32. Rxb1 {[%emt 0:00:11]} Bxb1 {[%emt 0:00:04]} 33. Ba5 {[%emt 0:00:28]} Ne6 {[%emt 0:00:47]} 34. Na4 {[%emt 0:01:15]} g5 {[%emt 0:05:38]} 35. Nc3 {[%emt 0:02:40]} Bc2 {[%emt 0:03:00]} 36. Bb4 {[%emt 0:00:54]} Kg7 {[%emt 0:06:47]} 37. Be7 {[%emt 0:01:03]} Bb3 {[%emt 0:00:07]} 38. Bb5 {[%emt 0:00:37]} h6 {[%emt 0:03:42]} 39. Bc6 {[%emt 0:00:36]} Nc7 {[%emt 0:00:04]} 40. Bd8 {[%emt 0:06:24]} Nce8 {[%emt 0:01:52]} 41. e4 {[%emt 0:31:51]} dxe4 {[%emt 0:03:04]} 42. fxe4 {[%emt 0:00:00]} Kf8 {[%emt 0:00:35]} 43. e5 {[%emt 0:00:00]} Ng4+ {[%emt 0:08:14]} 44. Kg3 {[%emt 0:00:00]} Ne3 {[%emt 0:00:06]} 45. d5 {[%emt 0:00:00]} Nc4 {[%emt 0:02:46]} 46. d6 {[%emt 0:00:00]} Ncxd6 {[%emt 0:00:22]} 47. exd6 {[%emt 0:00:00]} Nxd6 {[%emt 0:00:07]} 48. Bf6 {[%emt 0:00:00]} Be6 {[%emt 0:03:36]} 49. Kf3 {[%emt 0:00:00]} Kg8 {[%emt 0:01:10]} 50. Nb5 {[%emt 0:00:00]} Nxb5 {[%emt 0:06:37]} 51. Bxb5 {[%emt 0:00:00]} Bf5 {[%emt 0:00:10]} 52. Bc4 {[%emt 0:00:00]} Bc2 {[%emt 0:01:12]} 53. Ke3 {[%emt 0:00:00]} Bg6 {[%emt 0:00:38]} 54. Kd4 {[%emt 0:00:00]} Bh5 {[%emt 0:01:27]} 55. Ke5 {[%emt 0:00:00]} Bg6 {[%emt 0:00:37]} 56. Kd6 {[%emt 0:00:00]} Bh5 {[%emt 0:00:47]} 57. Ke7 {[%emt 0:00:00]} Bg6 {[%emt 0:00:15]} 58. Ke8 {[%emt 0:00:00]} Bh5 {[%emt 0:03:38]} 59. Be7 {[%emt 0:00:00]} Bg6 {[%emt 0:00:38]} 60. Bf8 {[%emt 0:00:00]} h5 {[%emt 0:00:06]} 61. Be7 {[%emt 0:00:00]} Kg7 {[%emt 0:00:12]} 62. Kd7 {[%emt 0:04:59]} Bf5+ {[%emt 0:01:39]} 63. Kd6 {[%emt 0:00:09]} f6 {[%emt 0:01:11]} 64. Be6 {[%emt 0:02:08]} Bc2 {[%emt 0:00:04]} 65. Bd8 {[%emt 0:01:11]} g4 {[%emt 0:02:30]} 66. Bb6 {[%emt 0:02:43]} Kg6 {[%emt 0:00:23]} 67. Bf2 {[%emt 0:00:19]} Kg5 {[%emt 0:01:11]} 68. Be3+ {[%emt 0:00:20]} Kg6 {[%emt 0:00:17]} 69. Ke7 {[%emt 0:00:33]} Bd1 {[%emt 0:00:37]} 70. Bf7+ {[%emt 0:02:17]} Kf5 {[%emt 0:00:04]} 71. Bxh5 {[%emt 0:01:06]} Ke4 {[%emt 0:00:10]} 72. Bb6 {[%emt 0:01:21]} Kf3 {[%emt 0:00:53]} 73. Bc7 {[%emt 0:01:31]} f5 {[%emt 0:00:53]} 74. Kf6 {[%emt 0:00:54]} Kg2 {[%emt 0:01:08]} 75. Kg5 {[%emt 0:00:12]} 1-0

[Event "EYTCC U18 Open 2019"]
[Site "Pardubice"]
[Date "2019.07.11"]
[Round "1.28"]
[White "Ognean, Mihnea-Ionut"]
[Black "Van Dael, Siem"]
[Result "1-0"]
[ECO "E93"]
[WhiteElo "2287"]
[BlackElo "2319"]
[Annotator "NA"]
[PlyCount "59"]
[EventDate "2019.07.11"]
[EventType "swiss"]
[EventCountry "CZE"]
[SourceTitle "playchess.com"]
[Source "ChessBase"]
[SourceQuality "1"]
[WhiteTeam "Romania"]
[BlackTeam "Netherlands"]
[WhiteTeamCountry "ROU"]
[BlackTeamCountry "NED"]
[TimeControl "40/5400+30:1800+30"]

1. d4 {[%emt 0:00:00]} Nf6 {[%emt 0:00:00]} 2. c4 {[%emt 0:00:00]} g6 {[%emt 0:00:00]} 3. Nc3 {[%emt 0:00:00]} Bg7 {[%emt 0:00:00]} 4. e4 {[%emt 0:00:18]} d6 {[%emt 0:00:13]} 5. Nf3 {[%emt 0:00:28]} O-O {[%emt 0:00:17]} 6. Be2 {[%emt 0:00:08]} e5 {[%emt 0:00:32]} 7. d5 {[%emt 0:00:32]} Nbd7 {[%emt 0:00:24]} 8. Be3 {[%emt 0:00:18]} Ng4 {[%emt 0:00:24]} 9. Bg5 {[%emt 0:00:22]} f6 {[%emt 0:00:13]} 10. Bd2 {[%emt 0:00:44]} f5 {[%emt 0:04:18]} 11. exf5 {[%emt 0:01:57]} gxf5 {[%emt 0:06:43]} 12. Ng5 {[%emt 0:09:41]} Nc5 {[%emt 0:08:23]} 13. h3 {[%emt 0:16:29]} h6 {[%emt 0:21:24]} 14. hxg4 {[%emt 0:02:59]} hxg5 15. Be3 {[%emt 0:23:22]} e4 {[%emt 0:04:46]} 16. Qc2 {[%emt 0:04:46]} fxg4 {[%emt 0:08:40]} 17. O-O-O Qe8 {[%emt 0:07:48]} 18. Bxc5 {[%emt 0:07:43]} dxc5 {[%emt 0:00:11]} 19. Nxe4 {[%emt 0:00:04]} Bf5 {[%emt 0:02:05]} 20. Bd3 {[%emt 0:00:05]} Qe5 {[%emt 0:26:02]} 21. Nxc5 {[%emt 0:04:58]} b6 {[%emt 0:02:41]} 22. Ne6 {[%emt 0:04:24]} Bxe6 {[%emt 0:02:20]} 23. Bh7+ {[%emt 0:00:31]} Kf7 {[%emt 0:00:12]} 24. dxe6+ {[%emt 0:00:05]} Ke7 {[%emt 0:01:14]} 25. Rd7+ {[%emt 0:13:03]} Kxe6 {[%emt 0:00:06]} 26. Rxg7 {[%emt 0:00:25]} Qxg7 {[%emt 0:00:56]} 27. Re1+ {[%emt 0:00:08]} Kd7 {[%emt 0:00:22]} 28. Bf5+ {[%emt 0:00:04]} Kd6 {[%emt 0:02:06]} 29. Qd3+ {[%emt 0:00:08]} Kc6 {[%emt 0:00:05]} 30. Qd5# {[%emt 0:00:04] Kxd5} 1-0

[Event "EYTCC U18 Open 2019"]
[Site "Pardubice"]
[Date "2019.07.11"]
[Round "1.29"]
[White "Zarubitski, Viachaslau"]
[Black "Engel, Luis"]
[Result "1/2-1/2"]
[ECO "B52"]
[WhiteElo "2424"]
[BlackElo "2509"]
[Annotator "ChessBase"]
[PlyCount "99"]
[EventDate "2019.07.11"]
[EventType "swiss"]
[EventCountry "CZE"]
[SourceTitle "playchess.com"]
[Source "ChessBase"]
[SourceQuality "1"]
[WhiteTeam "Belarus"]
[BlackTeam "Germany"]
[WhiteTeamCountry "BLR"]
[BlackTeamCountry "GER"]
[TimeControl "40/5400+30:1800+30"]

1. e4 {[%emt 0:00:00]} c5 {[%emt 0:00:00]} 2. Nf3 {[%emt 0:00:00]} d6 {[%emt 0:00:00]} 3. Bb5+ {[%emt 0:00:00]} Bd7 {[%emt 0:00:00]} 4. Bxd7+ {[%emt 0:00:00]} Qxd7 {[%emt 0:00:01]} 5. c4 {[%emt 0:00:30]} Nf6 {[%emt 0:01:43]} 6. Nc3 {[%emt 0:00:04]} g6 {[%emt 0:00:06]} 7. O-O {[%emt 0:01:00]} Bg7 {[%emt 0:00:05]} 8. d4 {[%emt 0:01:21]} cxd4 {[%emt 0:00:05]} 9. Nxd4 {[%emt 0:00:04]} O-O {[%emt 0:00:09]} 10. f3 {[%emt 0:01:03]} Rc8 {[%emt 0:03:03]} 11. b3 {[%emt 0:02:12]} d5 {[%emt 0:01:18]} 12. exd5 {[%emt 0:14:47]} Nxd5 {[%emt 0:00:19]} 13. Nxd5 {[%emt 0:00:08]} e6 {[%emt 0:00:05]} 14. Bh6 {[%emt 0:11:13]} exd5 {[%emt 0:00:09]} 15. Bxg7 {[%emt 0:01:35]} Kxg7 {[%emt 0:00:05]} 16. cxd5 {[%emt 0:02:56]} Qxd5 {[%emt 0:06:34]} 17. Ne2 {[%emt 0:10:57]} Qe5 {[%emt 0:07:22]} 18. Qd4 {[%emt 0:05:39]} Nc6 {[%emt 0:00:46]} 19. Qxe5+ {[%emt 0:00:11]} Nxe5 {[%emt 0:00:08]} 20. Rac1 {[%emt 0:00:02]} b6 {[%emt 0:04:01]} 21. f4 {[%emt 0:11:12]} Ng4 {[%emt 0:04:12]} 22. h3 {[%emt 0:06:31]} Ne3 {[%emt 0:01:28]} 23. Rfe1 {[%emt 0:00:11]} Nd5 {[%emt 0:06:25]} 24. Red1 {[%emt 0:04:59]} Rxc1 {[%emt 0:00:55]} 25. Rxc1 {[%emt 0:00:07]} Re8 {[%emt 0:00:45]} 26. Kf2 {[%emt 0:01:59]} Nb4 {[%emt 0:04:12]} 27. Rc7 {[%emt 0:03:34]} a5 {[%emt 0:03:42]} 28. a3 {[%emt 0:06:14]} Nd3+ {[%emt 0:00:27]} 29. Kf1 {[%emt 0:00:38]} b5 {[%emt 0:08:52]} 30. Ra7 {[%emt 0:04:54]} b4 {[%emt 0:07:30]} 31. Rxa5 {[%emt 0:00:41]} bxa3 {[%emt 0:00:08]} 32. Rxa3 {[%emt 0:00:21]} h5 {[%emt 0:01:19]} 33. g3 {[%emt 0:01:47]} h4 {[%emt 0:02:03]} 34. gxh4 {[%emt 0:01:51]} Rb8 {[%emt 0:04:03]} 35. Kg2 {[%emt 0:01:33]} Re8 {[%emt 0:00:38]} 36. Kf3 {[%emt 0:01:23]} Ne1+ {[%emt 0:00:09]} 37. Kf2 {[%emt 0:00:02]} Nd3+ {[%emt 0:00:08]} 38. Kf1 {[%emt 0:00:01]} Rb8 {[%emt 0:00:09]} 39. f5 {[%emt 0:04:18]} gxf5 {[%emt 0:01:08]} 40. Nd4 {[%emt 0:00:45]} Nc5 {[%emt 0:03:25]} 41. Ra2 {[%emt 0:05:11]} Rb4 {[%emt 0:05:57]} 42. Nxf5+ {[%emt 0:01:31]} Kh7 {[%emt 0:00:17]} 43. Nd6 {[%emt 0:10:53]} Rxh4 {[%emt 0:03:24]} 44. Rf2 {[%emt 0:00:32]} Nxb3 {[%emt 0:00:38]} 45. Nxf7 {[%emt 0:00:16]} Nc5 {[%emt 0:01:20]} 46. Rf3 {[%emt 0:01:59]} Ne6 {[%emt 0:00:32]} 47. Kg2 {[%emt 0:00:51]} Nf4+ {[%emt 0:01:03]} 48. Kg3 {[%emt 0:00:06]} Rxh3+ {[%emt 0:00:07]} 49. Kxf4 {[%emt 0:00:02]} Rxf3+ {[%emt 0:00:08]} 50. Kxf3 {[%emt 0:00:02]} 1/2-1/2

[Event "EYTCC U18 Open 2019"]
[Site "Pardubice"]
[Date "2019.07.11"]
[Round "1.30"]
[White "Buckels, Valentin"]
[Black "Lazavik, Denis"]
[Result "1/2-1/2"]
[ECO "D11"]
[WhiteElo "2451"]
[BlackElo "2339"]
[Annotator "ChessBase"]
[PlyCount "186"]
[EventDate "2019.07.11"]
[EventType "swiss"]
[EventCountry "CZE"]
[SourceTitle "playchess.com"]
[Source "ChessBase"]
[SourceQuality "1"]
[WhiteTeam "Germany"]
[BlackTeam "Belarus"]
[WhiteTeamCountry "GER"]
[BlackTeamCountry "BLR"]
[TimeControl "40/5400+30:1800+30"]

1. d4 {[%emt 0:00:00]} d5 {[%emt 0:00:00]} 2. c4 {[%emt 0:00:00]} c6 {[%emt 0:00:00]} 3. Nf3 {[%emt 0:00:00]} Nf6 {[%emt 0:00:14]} 4. g3 {[%emt 0:00:11]} Bf5 {[%emt 0:00:36]} 5. Nc3 {[%emt 0:00:40]} e6 {[%emt 0:00:13]} 6. Nh4 {[%emt 0:00:12]} Bg6 {[%emt 0:12:56]} 7. Nxg6 {[%emt 0:01:02]} hxg6 {[%emt 0:00:32]} 8. Qd3 {[%emt 0:00:26]} Nbd7 {[%emt 0:03:38]} 9. Bg2 {[%emt 0:01:13]} Bd6 {[%emt 0:03:11]} 10. O-O {[%emt 0:01:28]} O-O {[%emt 0:00:34]} 11. Rd1 {[%emt 0:09:58]} dxc4 {[%emt 0:10:03]} 12. Qxc4 {[%emt 0:00:14]} e5 {[%emt 0:08:53]} 13. Bg5 {[%emt 0:09:38]} exd4 {[%emt 0:03:33]} 14. Qxd4 {[%emt 0:04:43]} Be7 {[%emt 0:03:24]} 15. Bh3 {[%emt 0:22:44]} Nb6 {[%emt 0:06:03]} 16. Qe5 {[%emt 0:12:56]} Qe8 {[%emt 0:01:04]} 17. Qc7 {[%emt 0:05:34]} Nfd5 {[%emt 0:05:37]} 18. Nxd5 {[%emt 0:00:38]} Bxg5 {[%emt 0:00:15]} 19. Nxb6 {[%emt 0:00:48]} axb6 {[%emt 0:00:06]} 20. Bf1 {[%emt 0:04:50]} b5 {[%emt 0:11:39]} 21. Qxb7 {[%emt 0:01:09]} Qe6 {[%emt 0:02:49]} 22. Qd7 {[%emt 0:02:59]} Qxd7 {[%emt 0:02:03]} 23. Rxd7 {[%emt 0:00:01]} Bf6 {[%emt 0:00:08]} 24. Rd2 {[%emt 0:02:03]} Ra5 25. e3 {[%emt 0:13:07]} Rfa8 {[%emt 0:09:18]} 26. a3 {[%emt 0:00:33]} b4 {[%emt 0:01:08]} 27. Rc1 {[%emt 0:00:17]} bxa3 {[%emt 0:00:27]} 28. bxa3 {[%emt 0:00:03]} Rxa3 {[%emt 0:01:24]} 29. Rxc6 {[%emt 0:00:13]} R3a7 {[%emt 0:04:09]} 30. Kg2 {[%emt 0:01:32]} g5 {[%emt 0:00:28]} 31. Rdc2 {[%emt 0:01:11]} Re8 {[%emt 0:01:22]} 32. Bb5 {[%emt 0:00:54]} Rb8 {[%emt 0:00:32]} 33. Bd3 {[%emt 0:00:45]} Re8 {[%emt 0:00:59]} 34. Rc8 {[%emt 0:01:18]} Ra8 {[%emt 0:00:13]} 35. R8c7 {[%emt 0:01:41]} Be5 {[%emt 0:01:21]} 36. R7c5 {[%emt 0:00:34]} Bf6 {[%emt 0:00:22]} 37. Bb5 {[%emt 0:00:30]} Re7 {[%emt 0:00:21]} 38. Rc8+ {[%emt 0:01:46]} Rxc8 {[%emt 0:00:05]} 39. Rxc8+ {[%emt 0:00:03]} Kh7 {[%emt 0:00:05]} 40. Bd3+ {[%emt 0:01:33]} g6 {[%emt 0:00:09]} 41. Bc4 {[%emt 0:04:45]} Kg7 {[%emt 0:01:13]} 42. Bd5 {[%emt 0:04:04]} Rd7 {[%emt 0:00:55]} 43. e4 {[%emt 0:00:42]} Be5 {[%emt 0:00:40]} 44. Re8 {[%emt 0:00:42]} Bd4 {[%emt 0:00:21]} 45. f3 {[%emt 0:05:09]} Bf6 {[%emt 0:00:54]} 46. Rc8 {[%emt 0:00:25]} Be5 {[%emt 0:00:18]} 47. Kh3 {[%emt 0:00:16]} Bf6 {[%emt 0:00:50]} 48. Kg4 {[%emt 0:00:33]} Re7 {[%emt 0:00:33]} 49. f4 {[%emt 0:03:26]} gxf4 {[%emt 0:00:09]} 50. gxf4 {[%emt 0:00:06]} Rd7 {[%emt 0:00:26]} 51. Bc6 {[%emt 0:01:25]} Ra7 {[%emt 0:00:11]} 52. h4 {[%emt 0:01:23]} Be7 {[%emt 0:00:18]} 53. Bd5 {[%emt 0:06:25]} Rd7 {[%emt 0:01:30]} 54. Bc4 {[%emt 0:02:31]} Bd6 {[%emt 0:00:55]} 55. Ra8 {[%emt 0:00:18]} Be7 {[%emt 0:00:40]} 56. Re8 {[%emt 0:01:49]} Bc5 {[%emt 0:01:18]} 57. h5 {[%emt 0:01:17]} gxh5+ {[%emt 0:01:03]} 58. Kxh5 {[%emt 0:00:07]} Re7 {[%emt 0:00:05]} 59. Rc8 {[%emt 0:00:10]} Be3 {[%emt 0:00:25]} 60. f5 {[%emt 0:01:52]} Bd4 {[%emt 0:00:12]} 61. Bd5 {[%emt 0:00:26]} Be5 {[%emt 0:00:18]} 62. Rc1 {[%emt 0:00:22]} Re8 {[%emt 0:02:52]} 63. Kg5 {[%emt 0:01:04]} Bf6+ {[%emt 0:00:20]} 64. Kg4 {[%emt 0:00:12]} Be5 {[%emt 0:00:13]} 65. Rc6 {[%emt 0:01:01]} Bf6 {[%emt 0:00:16]} 66. Rb6 {[%emt 0:00:22]} Re7 {[%emt 0:00:25]} 67. Kf4 {[%emt 0:00:28]} Re8 {[%emt 0:00:29]} 68. Kf3 {[%emt 0:01:14]} Re7 {[%emt 0:00:29]} 69. Kg4 {[%emt 0:00:56]} Re8 {[%emt 0:00:12]} 70. Rb7 {[%emt 0:00:17]} Re7 {[%emt 0:00:05]} 71. e5 {[%emt 0:00:14]} Rxe5 {[%emt 0:00:27]} 72. Rxf7+ {[%emt 0:00:08]} Kh8 {[%emt 0:00:06]} 73. Be6 {[%emt 0:02:07]} Bg7 {[%emt 0:00:43]} 74. Rd7 {[%emt 0:00:41]} Re1 {[%emt 0:03:14]} 75. Rd8+ {[%emt 0:00:23]} Kh7 {[%emt 0:00:05]} 76. Bg8+ {[%emt 0:00:09]} Kh8 {[%emt 0:00:07]} 77. Bd5+ {[%emt 0:00:39]} Kh7 {[%emt 0:00:12]} 78. Kh5 {[%emt 0:00:16]} Bf6 {[%emt 0:02:31]} 79. Rf8 {[%emt 0:00:49]} Bd4 {[%emt 0:01:44]} 80. Rf7+ {[%emt 0:00:27]} Kh8 {[%emt 0:00:05]} 81. Rd7 {[%emt 0:00:46]} Bc3 {[%emt 0:00:30]} 82. f6 {[%emt 0:00:35]} Bxf6 {[%emt 0:00:28]} 83. Kg6 {[%emt 0:00:29]} Be7 {[%emt 0:00:11]} 84. Ra7 {[%emt 0:00:29]} Rg1+ {[%emt 0:00:11]} 85. Kf7 {[%emt 0:00:32]} Rg7+ {[%emt 0:00:17]} 86. Ke6 {[%emt 0:00:23]} Kh7 {[%emt 0:00:26]} 87. Be4+ {[%emt 0:00:28]} Kh6 {[%emt 0:00:04]} 88. Ra1 {[%emt 0:00:16]} Bh4 {[%emt 0:01:02]} 89. Rh1 {[%emt 0:00:26]} Kg5 {[%emt 0:00:08]} 90. Bf5 {[%emt 0:00:29]} Kh5 {[%emt 0:00:23]} 91. Ke5 {[%emt 0:00:37]} Kg5 {[%emt 0:00:18]} 92. Rg1+ {[%emt 0:00:21]} Kh6 {[%emt 0:00:03]} 93. Rxg7 {[%emt 0:00:47]} Kxg7 {[%emt 0:00:05]} 1/2-1/2